bitfinex/quotes_BTCUSD_20250505
["timestamp","ask_amount","ask_price","bid_price","bid_amount"]
[1746404347595,0.52051406,94852.0,94851.0,0.10944058]
[1746404349068,0.52051406,94852.0,94851.0,0.10444058]
[1746404349270,0.52051406,94852.0,94851.0,0.11144058]
[1746404349627,0.52051406,94852.0,94851.0,0.10444058]
[1746404350031,0.52051406,94852.0,94851.0,0.10844058]
[1746404350427,0.52051406,94852.0,94851.0,0.10344058]
[1746404350779,0.52051406,94852.0,94851.0,0.10844058]
[1746404352597,0.52051406,94852.0,94851.0,0.10944058]
[1746404353159,0.52051406,94852.0,94851.0,0.10844058]
[1746404353385,0.52051406,94852.0,94851.0,0.10244058]
[1746404353559,0.52051406,94852.0,94851.0,0.10944058]
[1746404355105,0.52051406,94852.0,94851.0,0.15534058]
[1746404355675,0.52051406,94852.0,94851.0,0.14934058]
[1746404355862,0.52051406,94852.0,94851.0,0.14834058]
[1746404356071,0.52051406,94852.0,94851.0,0.15934058]
[1746404357192,0.52051406,94852.0,94851.0,0.11344058]
[1746404361084,0.52051406,94852.0,94851.0,0.09889973]
[1746404361503,0.52051406,94852.0,94851.0,0.11344058]
[1746404361924,0.52051406,94852.0,94851.0,0.10544058]
[1746404362318,0.52051406,94852.0,94851.0,0.10844058]
[1746404362500,0.52051406,94852.0,94851.0,0.09389973]
[1746404362745,0.52051406,94852.0,94851.0,0.09489973]
[1746404362951,0.52051406,94852.0,94851.0,0.10944058]
[1746404363149,0.52051406,94852.0,94851.0,0.09489973]
[1746404363262,0.52051406,94852.0,94851.0,0.09389973]
[1746404363461,0.52051406,94852.0,94851.0,0.10844058]
[1746404364007,0.52051406,94852.0,94851.0,0.10244058]
[1746404364200,0.52051406,94852.0,94851.0,0.10744058]
[1746404364790,0.52051406,94852.0,94851.0,0.10244058]
[1746404365006,0.52051406,94852.0,94851.0,0.10744058]
[1746404366369,0.52051406,94852.0,94851.0,0.05128885]
[1746404367042,0.67025633,94852.0,94851.0,0.036748]
[1746404367232,0.76181073,94852.0,94851.0,0.031748]
[1746404367434,0.6328211,94852.0,94851.0,0.036748]
[1746404367628,0.6328211,94852.0,94851.0,0.005]
[1746404368039,0.2108837,94839.0,94838.0,0.04950064]
[1746404368428,0.23069074,94839.0,94838.0,0.04950064]
[1746404370225,0.23069074,94839.0,94837.0,0.34904]
[1746404370426,0.01980704,94838.0,94837.0,0.34904]
[1746404371071,0.02244334,94838.0,94837.0,0.34904]
[1746404371603,0.36244334,94838.0,94837.0,0.35404]
[1746404371804,0.40840704,94838.0,94837.0,0.35404]
[1746404372571,0.45580704,94838.0,94837.0,0.35404]
[1746404374172,0.45580704,94838.0,94837.0,0.005]
[1746404374173,0.56232733,94838.0,94837.0,0.005]
[1746404374324,0.4825544,94838.0,94837.0,0.005]
[1746404375047,0.5325544,94838.0,94837.0,0.005]
[1746404375228,0.0927,94819.0,94818.0,0.04950064]
[1746404375448,0.12108438,94819.0,94818.0,0.04950064]
[1746404375837,0.14089142,94819.0,94818.0,0.04950064]
[1746404376467,0.14089142,94819.0,94818.0,0.04958248]
[1746404376468,0.14389142,94819.0,94818.0,0.04958248]
[1746404377395,0.14489142,94819.0,94818.0,0.04958248]
[1746404377607,0.14189142,94819.0,94818.0,0.04958248]
[1746404377969,0.14289142,94819.0,94818.0,0.04958248]
[1746404378168,0.25304614,94819.0,94818.0,0.04958248]
[1746404378464,0.59040912,94819.0,94818.0,0.02212559]
[1746404378679,0.50760325,94819.0,94818.0,0.02212559]
[1746404378883,0.50760325,94819.0,94818.0,8.184e-05]
[1746404379087,0.50660325,94819.0,94818.0,8.184e-05]
[1746404379586,0.50760325,94819.0,94818.0,8.184e-05]
[1746404381188,0.4802544,94819.0,94818.0,8.184e-05]
[1746404382674,0.58577469,94819.0,94818.0,8.184e-05]
[1746404382872,0.4802544,94819.0,94818.0,8.184e-05]
[1746404383462,0.45450704,94819.0,94818.0,8.184e-05]
[1746404384119,0.47794965,94819.0,94818.0,8.184e-05]
[1746404385417,0.45450704,94819.0,94818.0,8.184e-05]
[1746404385642,0.47794965,94819.0,94818.0,8.184e-05]
[1746404386672,0.45450704,94819.0,94818.0,8.184e-05]
[1746404387167,0.47794965,94819.0,94818.0,8.184e-05]
[1746404387484,0.45450704,94819.0,94818.0,8.184e-05]
[1746404389604,0.47794965,94819.0,94818.0,8.184e-05]
[1746404390667,0.47694965,94819.0,94818.0,8.184e-05]
[1746404390849,0.47894965,94819.0,94818.0,8.184e-05]
[1746404391719,0.53839004,94819.0,94818.0,8.184e-05]
[1746404393719,0.52894965,94819.0,94818.0,8.184e-05]
[1746404397425,0.50550704,94819.0,94818.0,8.184e-05]
[1746404398094,0.06910704,94819.0,94818.0,8.184e-05]
[1746404398313,0.02544454,94819.0,94818.0,8.184e-05]
[1746404401378,0.36180704,94819.0,94818.0,8.184e-05]
[1746404402290,0.35980704,94819.0,94818.0,8.184e-05]
[1746404402490,0.35980704,94819.0,94818.0,0.01562269]
[1746404403113,0.35980704,94819.0,94818.0,0.01462269]
[1746404403311,0.35980704,94819.0,94818.0,0.01562269]
[1746404403835,0.35980704,94819.0,94818.0,0.01762269]
[1746404405440,0.35980704,94819.0,94818.0,0.00308184]
[1746404424206,0.36080704,94819.0,94818.0,0.00308184]
[1746404424853,0.36080704,94819.0,94818.0,0.00108184]
[1746404425047,0.36080704,94819.0,94818.0,0.00208184]
[1746404425488,0.36080704,94819.0,94818.0,8.184e-05]
[1746404425844,0.36180704,94819.0,94818.0,0.00108184]
[1746404426327,0.36180704,94819.0,94818.0,8.184e-05]
[1746404426574,0.36180704,94819.0,94818.0,0.00208184]
[1746404427279,0.36080704,94819.0,94818.0,0.00208184]
[1746404428274,0.36080704,94819.0,94818.0,0.01662269]
[1746404428453,0.01980704,94819.0,94818.0,0.06252269]
[1746404428661,0.01980704,94819.0,94818.0,0.16747442]
[1746404429258,0.21092596,94820.0,94819.0,0.01454085]
[1746404429679,0.57075266,94820.0,94819.0,0.01454085]
[1746404430916,0.57075266,94820.0,94819.0,0.01554085]
[1746404431297,0.57075266,94820.0,94819.0,0.01754085]
[1746404431498,0.55092596,94820.0,94819.0,0.01754085]
[1746404445823,0.55092596,94820.0,94819.0,0.06574085]
[1746404446027,0.55092596,94820.0,94819.0,0.07490637]
[1746404446650,0.55092596,94820.0,94819.0,0.07290637]
[1746404447068,0.55092596,94820.0,94819.0,0.07790637]
[1746404447277,0.55092596,94820.0,94819.0,0.06774085]
[1746404447627,0.55092596,94820.0,94819.0,0.07174085]
[1746404447994,0.34,94820.0,94819.0,0.07174085]
[1746404448141,0.22146337,94824.0,94821.0,0.01454085]
[1746404448330,0.21092127,94823.0,94822.0,0.02368458]
[1746404449665,0.17784838,94823.0,94822.0,0.02568458]
[1746404451154,0.17784838,94823.0,94822.0,0.02968458]
[1746404451490,0.17784838,94823.0,94822.0,0.08583631]
[1746404452103,0.51784838,94823.0,94822.0,0.13344086]
[1746404455048,0.51784838,94823.0,94822.0,0.08583631]
[1746404455255,0.51784838,94823.0,94822.0,0.07669258]
[1746404456879,0.51784838,94823.0,94822.0,0.06215173]
[1746404457063,0.51784838,94823.0,94822.0,0.07669258]
[1746404457464,0.51784838,94823.0,94822.0,0.01654085]
[1746404457984,0.51784838,94823.0,94822.0,0.02054085]
[1746404458836,0.51784838,94823.0,94822.0,0.01854085]
[1746404458967,0.51784838,94823.0,94822.0,0.01454085]
[1746404459172,0.51784838,94823.0,94822.0,0.01754085]
[1746404459377,0.51784838,94823.0,94822.0,0.02154085]
[1746404465024,0.56424838,94823.0,94822.0,0.02154085]
[1746404465266,0.63709099,94823.0,94822.0,0.007]
[1746404465488,0.61364838,94823.0,94822.0,0.007]
[1746404465988,0.63346185,94823.0,94822.0,0.004]
[1746404466154,0.21092818,94819.0,94818.0,8.184e-05]
[1746404466359,0.21192818,94819.0,94818.0,8.184e-05]
[1746404466764,0.27864165,94819.0,94818.0,8.184e-05]
[1746404467452,0.61864165,94819.0,94818.0,8.184e-05]
[1746404468218,0.61864165,94819.0,94818.0,0.00108184]
[1746404468582,0.61864165,94819.0,94818.0,8.184e-05]
[1746404468862,0.61864165,94819.0,94818.0,0.00108184]
[1746404469467,0.61864165,94819.0,94818.0,8.184e-05]
[1746404469658,0.61864165,94819.0,94818.0,0.00108184]
[1746404471122,0.61864165,94819.0,94818.0,8.184e-05]
[1746404471496,0.61864165,94819.0,94818.0,0.00208184]
[1746404472033,0.61864165,94819.0,94818.0,0.00108184]
[1746404472320,0.61864165,94819.0,94818.0,0.00208184]
[1746404472514,0.61864165,94819.0,94818.0,0.00308184]
[1746404472763,0.61864165,94819.0,94818.0,0.00108184]
[1746404472963,0.61864165,94819.0,94818.0,0.00308184]
[1746404477252,0.61601094,94819.0,94818.0,0.00308184]
[1746404477599,0.68575355,94819.0,94818.0,0.00308184]
[1746404478041,0.68575355,94819.0,94818.0,0.00108184]
[1746404478257,0.68575355,94819.0,94818.0,8.184e-05]
[1746404478490,0.68575355,94819.0,94818.0,0.00108184]
[1746404478820,0.68575355,94819.0,94818.0,8.184e-05]
[1746404480553,0.84227384,94819.0,94818.0,8.184e-05]
[1746404480770,0.84127384,94819.0,94818.0,8.184e-05]
[1746404481165,0.84227384,94819.0,94818.0,8.184e-05]
[1746404481382,0.84127384,94819.0,94818.0,8.184e-05]
[1746404481584,0.73575355,94819.0,94818.0,8.184e-05]
[1746404481787,0.74075355,94819.0,94818.0,8.184e-05]
[1746404482363,0.74575355,94819.0,94818.0,8.184e-05]
[1746404483906,0.72231094,94819.0,94818.0,8.184e-05]
[1746404484110,0.67231094,94819.0,94818.0,8.184e-05]
[1746404484500,0.72231094,94819.0,94818.0,8.184e-05]
[1746404485307,0.67231094,94819.0,94818.0,8.184e-05]
[1746404486092,0.28541094,94819.0,94818.0,8.184e-05]
[1746404487182,0.27541094,94819.0,94818.0,8.184e-05]
[1746404487636,0.27741094,94819.0,94818.0,8.184e-05]
[1746404490257,0.61741094,94819.0,94818.0,8.184e-05]
[1746404490459,0.63395331,94819.0,94818.0,8.184e-05]
[1746404493551,0.21096823,94801.0,94799.0,0.02985346]
[1746404493735,0.21096823,94801.0,94799.0,0.02994021]
[1746404494701,0.22751087,94801.0,94799.0,0.03294021]
[1746404494901,0.0197954,94800.0,94799.0,0.03294021]
[1746404495070,0.0197954,94800.0,94799.0,0.03494021]
[1746404495441,0.0197954,94800.0,94799.0,0.04948106]
[1746404495641,0.02243269,94800.0,94799.0,0.04948106]
[1746404495893,0.00263729,94800.0,94799.0,0.04748106]
[1746404496201,0.00263729,94800.0,94799.0,0.04648106]
[1746404496509,0.00263729,94800.0,94799.0,0.04948106]
[1746404497026,0.21096823,94801.0,94799.0,0.04948106]
[1746404497870,0.21096823,94801.0,94799.0,0.04448106]
[1746404498071,0.21096823,94801.0,94799.0,0.04748106]
[1746404498314,0.0197993,94800.0,94799.0,0.04948106]
[1746404499223,0.03634193,94800.0,94799.0,0.04948106]
[1746404499647,0.03634193,94800.0,94799.0,0.04648106]
[1746404500163,0.03634193,94800.0,94799.0,0.04948106]
[1746404500282,0.03634193,94800.0,94799.0,0.04748106]
[1746404500755,0.03634193,94800.0,94799.0,0.04948106]
[1746404500950,0.03897924,94800.0,94799.0,0.04948106]
[1746404502405,0.07004083,94800.0,94799.0,0.04948106]
[1746404503447,0.03897924,94800.0,94799.0,0.0196276]
[1746404504213,0.03634193,94800.0,94799.0,0.0196276]
[1746404506189,0.0197993,94800.0,94799.0,0.07577933]
[1746404506430,0.0197993,94800.0,94799.0,0.16887933]
[1746404506638,0.21096823,94801.0,94800.0,0.01454085]
[1746404506845,0.21096823,94801.0,94800.0,0.05974085]
[1746404507319,0.21096823,94801.0,94800.0,0.06931248]
[1746404507741,0.21096823,94801.0,94800.0,0.07231248]
[1746404508138,0.21096823,94801.0,94800.0,0.07431248]
[1746404509181,0.22750907,94801.0,94800.0,0.07431248]
[1746404509679,0.22750907,94801.0,94800.0,0.12203885]
[1746404510095,0.22750907,94801.0,94800.0,0.17819058]
[1746404516321,0.21096823,94801.0,94800.0,0.17819058]
[1746404516530,0.22151398,94803.0,94800.0,0.13299058]
[1746404516727,0.01054774,94807.0,94806.0,0.01454085]
[1746404516900,0.22150262,94807.0,94806.0,0.06024085]
[1746404517105,0.22149967,94809.0,94806.0,0.06962866]
[1746404517304,0.01054752,94809.0,94808.0,0.06024085]
[1746404517733,0.01054729,94811.0,94808.0,0.05924085]
[1746404517892,0.22149535,94811.0,94809.0,0.0487]
[1746404518095,0.22148512,94815.0,94809.0,0.0487]
[1746404518301,0.22147308,94820.0,94817.0,0.0487]
[1746404518477,0.22147308,94820.0,94818.0,0.05615173]
[1746404518706,0.22147308,94820.0,94818.0,0.06552653]
[1746404519313,0.23801063,94820.0,94818.0,0.06552653]
[1746404519718,0.01653755,94820.0,94819.0,0.06174085]
[1746404519923,0.01653755,94820.0,94819.0,0.11044085]
[1746404520128,0.01653755,94820.0,94819.0,0.11976155]
[1746404521115,0.21088593,94838.0,94837.0,0.11374085]
[1746404521339,0.21088593,94838.0,94837.0,0.15365503]
[1746404521538,0.22742041,94838.0,94837.0,0.16289398]
[1746404521736,0.22742041,94838.0,94837.0,0.19464598]
[1746404522442,0.22742041,94838.0,94837.0,0.19764598]
[1746404523021,0.22742041,94838.0,94837.0,0.19464598]
[1746404523244,0.22742041,94838.0,94837.0,0.19564598]
[1746404523555,0.22742041,94838.0,94837.0,0.19464598]
[1746404523940,0.22742041,94838.0,94837.0,0.19664598]
[1746404524356,0.22742041,94838.0,94837.0,0.20064598]
[1746404526296,0.21088593,94838.0,94837.0,0.20064598]
[1746404528254,0.01054418,94839.0,94838.0,0.01454085]
[1746404528451,0.01054096,94868.0,94850.0,0.10644085]
[1746404528671,0.00216564,94851.0,94850.0,0.14635503]
[1746404529071,0.00216564,94851.0,94850.0,0.15516898]
[1746404529948,0.0186961,94851.0,94850.0,0.15516898]
[1746404530582,0.001,94869.0,94850.0,0.15516898]
[1746404530583,0.001,94869.0,94868.0,0.10864085]
[1746404530927,0.00104565,94869.0,94868.0,0.06312951]
[1746404531128,0.01757431,94869.0,94868.0,0.06312951]
[1746404531275,0.01757431,94869.0,94868.0,0.08619703]
[1746404531455,0.01757431,94869.0,94868.0,0.09480741]
[1746404531646,0.01757431,94869.0,94868.0,0.13329703]
[1746404531843,0.01757431,94869.0,94868.0,0.14190741]
[1746404532075,0.01757431,94869.0,94868.0,0.14790741]
[1746404532971,0.01757431,94869.0,94868.0,0.15090741]
[1746404534702,0.01757431,94869.0,94868.0,0.36172665]
[1746404536245,0.00104565,94869.0,94868.0,0.36172665]
[1746404536403,0.00104565,94869.0,94868.0,0.40752665]
[1746404536619,0.01153862,94889.0,94880.0,0.27503343]
[1746404536620,0.001,94889.0,94880.0,0.27503343]
[1746404536803,0.01053874,94888.0,94880.0,0.28360305]
[1746404537014,0.01053874,94888.0,94880.0,0.63260305]
[1746404537645,0.01053885,94887.0,94880.0,0.63260305]
[1746404538290,0.01053885,94887.0,94880.0,0.63760305]
[1746404538954,0.01053874,94888.0,94880.0,0.63760305]
[1746404539150,0.01053896,94886.0,94880.0,0.63760305]
[1746404539563,0.22131392,94888.0,94880.0,0.63860305]
[1746404540255,0.01053885,94887.0,94880.0,0.63860305]
[1746404540464,0.0200278,94881.0,94880.0,0.63860305]
[1746404541025,0.0200278,94881.0,94880.0,0.67033605]
[1746404542339,0.01053885,94887.0,94884.0,0.01884073]
[1746404542485,0.01053885,94887.0,94885.0,0.01454085]
[1746404542682,0.01053885,94887.0,94885.0,0.02270578]
[1746404542935,0.21077925,94886.0,94885.0,0.02270578]
[1746404543139,0.21077925,94886.0,94885.0,0.00816493]
[1746404543593,0.21077925,94886.0,94885.0,0.01216493]
[1746404543967,0.21077925,94886.0,94885.0,0.02270578]
[1746404544162,0.21077925,94886.0,94885.0,0.00816493]
[1746404544364,0.21077925,94886.0,94885.0,0.01216493]
[1746404544759,0.26027925,94886.0,94885.0,0.01216493]
[1746404544946,0.26027925,94886.0,94885.0,0.02670578]
[1746404545154,0.26027925,94886.0,94885.0,0.01216493]
[1746404545376,0.22723192,94886.0,94885.0,0.02670578]
[1746404545771,0.23023192,94886.0,94885.0,0.02670578]
[1746404545974,0.23023192,94886.0,94885.0,0.00816493]
[1746404546199,0.22723192,94886.0,94885.0,0.00816493]
[1746404546520,0.22923192,94886.0,94885.0,0.00916493]
[1746404546883,0.27623192,94886.0,94885.0,0.00816493]
[1746404547126,0.27623192,94886.0,94885.0,0.01016493]
[1746404549207,0.29275978,94886.0,94885.0,0.01016493]
[1746404549633,0.21079035,94881.0,94880.0,0.34263709]
[1746404550464,0.21179035,94881.0,94880.0,0.35717794]
[1746404550668,0.22831913,94881.0,94880.0,0.35717794]
[1746404550874,0.22831913,94881.0,94880.0,0.36017794]
[1746404551293,0.22831913,94881.0,94880.0,0.36714983]
[1746404552655,0.24906238,94881.0,94880.0,0.36714983]
[1746404552897,0.24806238,94881.0,94880.0,0.36714983]
[1746404553546,0.24806238,94881.0,94880.0,0.02451274]
[1746404553953,0.24806238,94881.0,94880.0,0.01754085]
[1746404555934,0.21179035,94881.0,94880.0,0.01754085]
[1746404559946,0.21179035,94881.0,94880.0,0.03638158]
[1746404562675,0.21179035,94881.0,94880.0,0.01985319]
[1746404564327,0.1692934,94881.0,94880.0,0.01985319]
[1746404564694,0.1692934,94881.0,94880.0,0.03439404]
[1746404565951,0.1858221,94881.0,94880.0,0.03439404]
[1746404566308,0.1692934,94881.0,94880.0,0.03439404]
[1746404567060,0.13624004,94881.0,94880.0,0.03439404]
[1746404569145,0.15276882,94881.0,94880.0,0.03439404]
[1746404569684,0.15276882,94881.0,94880.0,0.01786526]
[1746404570298,0.15376882,94881.0,94880.0,0.01786526]
[1746404570499,0.15640369,94881.0,94880.0,0.01786526]
[1746404572004,0.15376882,94881.0,94880.0,0.01786526]
[1746404573572,0.15276882,94881.0,94880.0,0.01786526]
[1746404573933,0.15376882,94881.0,94880.0,0.01786526]
[1746404575879,0.15276882,94881.0,94880.0,0.01786526]
[1746404576276,0.13624004,94881.0,94880.0,0.01786526]
[1746404579325,0.15276876,94881.0,94880.0,0.01786526]
[1746404581846,0.14887476,94881.0,94880.0,0.01786526]
[1746404584732,0.14887476,94881.0,94880.0,0.00332441]
[1746404584733,0.15250963,94881.0,94880.0,0.00332441]
[1746404584902,0.24700963,94881.0,94880.0,0.00332441]
[1746404585138,0.24437476,94881.0,94880.0,0.00332441]
[1746404586276,0.22784604,94881.0,94880.0,0.00332441]
[1746404587421,0.17854604,94881.0,94880.0,0.00332441]
[1746404587623,0.13334604,94881.0,94880.0,0.00332441]
[1746404588008,0.13234604,94881.0,94880.0,0.00332441]
[1746404588217,0.13334604,94881.0,94880.0,0.00332441]
[1746404589443,0.2107948,94879.0,94878.0,0.04939457]
[1746404589572,0.2107948,94879.0,94878.0,0.06393542]
[1746404590837,0.2107948,94879.0,94878.0,0.01454085]
[1746404592486,0.2107948,94879.0,94878.0,0.01654085]
[1746404593147,0.2107948,94879.0,94878.0,0.06422545]
[1746404595358,0.2107948,94879.0,94878.0,0.06754986]
[1746404598520,0.23882999,94879.0,94878.0,0.06754986]
[1746404598703,0.28492999,94879.0,94878.0,0.06754986]
[1746404598926,0.28492999,94879.0,94878.0,0.0496846]
[1746404599056,0.37863519,94879.0,94878.0,0.0496846]
[1746404599256,0.34765938,94879.0,94878.0,0.0496846]
[1746404599862,0.37863519,94879.0,94878.0,0.0496846]
[1746404600614,0.37863519,94879.0,94878.0,0.0476846]
[1746404600985,0.37863519,94879.0,94867.0,0.34892]
[1746404600986,0.30309702,94878.0,94877.0,0.04981964]
[1746404601227,0.36110802,94878.0,94877.0,0.04981964]
[1746404601424,0.43659377,94878.0,94877.0,0.04981964]
[1746404602267,0.36210802,94878.0,94877.0,0.04981964]
[1746404602407,0.21181924,94868.0,94867.0,0.34892]
[1746404602611,0.33115443,94868.0,94867.0,0.00411343]
[1746404602808,0.21084146,94858.0,94857.0,0.06431717]
[1746404603060,0.28397665,94858.0,94857.0,0.06436282]
[1746404603297,0.25694146,94858.0,94857.0,0.06436282]
[1746404604395,0.27347394,94858.0,94857.0,0.06436282]
[1746404604609,0.27347394,94858.0,94857.0,0.06636282]
[1746404604811,0.27347394,94858.0,94857.0,0.00204565]
[1746404605182,0.27347394,94858.0,94857.0,0.00404565]
[1746404606327,0.30150913,94858.0,94857.0,0.00404565]
[1746404606869,0.28497665,94858.0,94857.0,0.00404565]
[1746404607403,0.28497665,94858.0,94857.0,0.00204565]
[1746404608070,0.28497665,94858.0,94857.0,4.565e-05]
[1746404608314,0.25794146,94858.0,94857.0,4.565e-05]
[1746404609151,0.25794146,94858.0,94857.0,0.00104565]
[1746404609955,0.27447496,94858.0,94857.0,0.00104565]
[1746404611853,0.27442359,94858.0,94857.0,0.00104565]
[1746404616295,0.25789009,94858.0,94857.0,0.00104565]
[1746404618120,0.21179009,94858.0,94857.0,0.00104565]
[1746404618540,0.21079009,94858.0,94857.0,0.0638865]
[1746404618808,0.21079009,94858.0,94857.0,0.06721091]
[1746404619013,0.22138048,94860.0,94858.0,0.01454085]
[1746404619408,0.02707237,94860.0,94859.0,0.01886716]
[1746404619632,0.01653052,94860.0,94858.0,0.08402964]
[1746404619835,0.01653052,94860.0,94859.0,0.21083924]
[1746404620112,0.01653052,94860.0,94858.0,0.08402964]
[1746404620518,0.01653052,94860.0,94858.0,0.08702964]
[1746404620714,0.01653052,94860.0,94858.0,0.08402964]
[1746404621139,0.01653052,94860.0,94859.0,0.036743]
[1746404621345,0.01653052,94860.0,94857.0,0.09747006]
[1746404621562,0.21083924,94859.0,94858.0,0.005]
[1746404621720,0.21083924,94859.0,94858.0,0.02554085]
[1746404621915,0.21083924,94859.0,94858.0,0.02054085]
[1746404622174,0.21083924,94859.0,94858.0,0.01454085]
[1746404623641,0.17778118,94859.0,94858.0,0.01454085]
[1746404623817,0.17778118,94859.0,94858.0,0.01954085]
[1746404624399,0.17778118,94859.0,94858.0,0.02554085]
[1746404624632,0.17778118,94859.0,94858.0,0.02886526]
[1746404628931,0.01054174,94861.0,94858.0,0.02886526]
[1746404629108,0.01652971,94859.0,94858.0,0.02886526]
[1746404633520,0.01652971,94859.0,94858.0,0.23970672]
[1746404634627,0.01652971,94859.0,94858.0,0.02886526]
[1746404635293,0.01652971,94859.0,94858.0,0.07386526]
[1746404636201,0.01054096,94868.0,94864.0,0.0105414]
[1746404636453,0.01054096,94868.0,94865.0,0.01454085]
[1746404636567,0.01054096,94868.0,94865.0,0.02508214]
[1746404636768,0.01054096,94868.0,94867.0,0.01454085]
[1746404637543,0.01054096,94868.0,94867.0,0.01786526]
[1746404637991,0.01054029,94874.0,94870.0,0.01454085]
[1746404638169,0.22134838,94874.0,94870.0,0.01454085]
[1746404638374,0.0105404,94873.0,94870.0,0.01454085]
[1746404639314,0.02706846,94873.0,94870.0,0.01454085]
[1746404640049,0.02706846,94873.0,94870.0,0.01954085]
[1746404640692,0.02706846,94873.0,94870.0,0.02554085]
[1746404642219,0.02706846,94873.0,94872.0,0.01454085]
[1746404643377,0.02706846,94873.0,94872.0,0.02054085]
[1746404643560,0.02706846,94873.0,94872.0,0.02554085]
[1746404643758,0.01652806,94873.0,94872.0,0.02554085]
[1746404643977,0.01652806,94873.0,94872.0,0.07308787]
[1746404644811,0.19428209,94874.0,94872.0,0.07308787]
[1746404645012,0.01054018,94875.0,94872.0,0.07308787]
[1746404645293,0.21080591,94874.0,94872.0,0.07308787]
[1746404645753,0.22733407,94874.0,94872.0,0.06708787]
[1746404646112,0.22733407,94874.0,94872.0,0.07308787]
[1746404646315,0.21080591,94874.0,94872.0,0.06808787]
[1746404646496,0.21080591,94874.0,94872.0,0.05854702]
[1746404646948,0.21080591,94874.0,94873.0,0.01454085]
[1746404647151,0.21080591,94874.0,94872.0,0.011]
[1746404647353,0.21080591,94874.0,94873.0,0.01454085]
[1746404647622,0.0105394,94882.0,94878.0,0.01454085]
[1746404647843,0.22132772,94882.0,94880.0,0.01454085]
[1746404648207,0.22132772,94882.0,94881.0,0.42284085]
[1746404648208,0.22132753,94882.0,94881.0,0.42284085]
[1746404648406,0.23785496,94882.0,94881.0,0.42284085]
[1746404649953,0.23785496,94882.0,94881.0,0.42684085]
[1746404650204,0.23785496,94882.0,94881.0,0.42984085]
[1746404652846,0.23885496,94882.0,94881.0,0.4153]
[1746404653538,0.28515496,94882.0,94881.0,0.42684085]
[1746404653771,0.28515496,94882.0,94881.0,0.42484085]
[1746404653958,0.28515496,94882.0,94881.0,0.42784085]
[1746404656289,0.26862753,94882.0,94881.0,0.42784085]
[1746404656861,0.22232753,94882.0,94881.0,0.42784085]
[1746404659430,0.2388562,94882.0,94881.0,0.42784085]
[1746404660239,0.2388562,94882.0,94881.0,0.4133]
[1746404662631,0.2378562,94882.0,94881.0,0.42784085]
[1746404663023,0.2388562,94882.0,94881.0,0.42784085]
[1746404664890,0.2388562,94882.0,94881.0,0.4133]
[1746404665668,0.2388562,94882.0,94881.0,0.005]
[1746404666297,0.22232753,94882.0,94881.0,0.005]
[1746404669352,0.23885586,94882.0,94881.0,0.005]
[1746404672072,0.23885586,94882.0,94881.0,0.01954085]
[1746404675955,0.22232753,94882.0,94881.0,0.01954085]
[1746404677286,0.22232753,94882.0,94881.0,0.42784085]
[1746404679354,0.22232753,94882.0,94881.0,0.4083]
[1746404681316,0.22232753,94882.0,94881.0,0.42284085]
[1746404686231,0.23885532,94882.0,94881.0,0.42284085]
[1746404686934,0.22232753,94882.0,94881.0,0.42284085]
[1746404688105,0.24214217,94882.0,94881.0,0.42284085]
[1746404688325,0.24214217,94882.0,94881.0,0.4083]
[1746404689113,0.21081702,94869.0,94868.0,0.01454085]
[1746404689764,0.22734564,94869.0,94868.0,0.01454085]
[1746404690055,0.22834564,94869.0,94868.0,0.01454085]
[1746404690866,0.22834564,94869.0,94868.0,0.01854085]
[1746404691553,0.22834564,94869.0,94868.0,0.01454085]
[1746404691924,0.22834564,94869.0,94868.0,0.01754085]
[1746404692531,0.22834564,94869.0,94868.0,0.02154085]
[1746404694774,0.22834564,94869.0,94868.0,0.0691739]
[1746404695091,0.22834564,94869.0,94868.0,0.4774739]
[1746404701808,0.21181702,94869.0,94868.0,0.4774739]
[1746404704309,0.22834662,94869.0,94868.0,0.4774739]
[1746404708243,0.21181702,94869.0,94868.0,0.4774739]
[1746404711265,0.44818627,94869.0,94868.0,0.05463305]
[1746404711668,0.33324799,94869.0,94868.0,0.05463305]
[1746404712159,0.33324799,94869.0,94868.0,0.04763305]
[1746404712551,0.32544841,94869.0,94868.0,0.04763305]
[1746404715803,0.35077938,94869.0,94868.0,0.04763305]
[1746404715954,0.35077938,94869.0,94857.0,4.565e-05]
[1746404715955,0.21084146,94858.0,94857.0,4.565e-05]
[1746404716160,0.25974146,94858.0,94857.0,4.565e-05]
[1746404716551,0.26074146,94858.0,94857.0,4.565e-05]
[1746404716966,0.26074146,94858.0,94857.0,0.00104565]
[1746404717943,0.30914146,94858.0,94857.0,4.565e-05]
[1746404718137,0.38533132,94858.0,94857.0,4.565e-05]
[1746404718296,0.38433132,94858.0,94857.0,0.00204565]
[1746404718694,0.38533132,94858.0,94857.0,0.00204565]
[1746404719302,0.40186495,94858.0,94857.0,4.565e-05]
[1746404719533,0.40286495,94858.0,94857.0,4.565e-05]
[1746404719969,0.40186495,94858.0,94857.0,4.565e-05]
[1746404721424,0.40286495,94858.0,94857.0,4.565e-05]
[1746404722215,0.42819592,94858.0,94857.0,4.565e-05]
[1746404723972,0.35300606,94858.0,94857.0,4.565e-05]
[1746404726210,0.33647243,94858.0,94857.0,4.565e-05]
[1746404729278,0.35300688,94858.0,94857.0,4.565e-05]
[1746404730252,0.23037591,94858.0,94857.0,4.565e-05]
[1746404732098,0.22937591,94858.0,94857.0,4.565e-05]
[1746404732324,0.22837591,94858.0,94857.0,0.0599865]
[1746404732455,0.22837591,94858.0,94857.0,0.5168865]
[1746404732896,0.22737591,94858.0,94857.0,0.5168865]
[1746404733283,0.22837591,94858.0,94857.0,0.5168865]
[1746404733507,0.22737591,94858.0,94857.0,0.5168865]
[1746404733735,0.01653445,94858.0,94857.0,0.5178865]
[1746404734130,0.01653445,94858.0,94857.0,0.5168865]
[1746404734322,0.01653445,94858.0,94857.0,0.5218865]
[1746404734841,0.01653445,94858.0,94857.0,0.5208865]
[1746404735249,0.01653445,94858.0,94857.0,0.5248865]
[1746404736203,0.01054185,94860.0,94858.0,0.01454085]
[1746404736593,0.22137959,94860.0,94858.0,0.01454085]
[1746404736844,0.01054185,94860.0,94858.0,0.01454085]
[1746404737424,0.01054151,94863.0,94858.0,0.2419234]
[1746404738237,0.01054151,94863.0,94858.0,0.2359234]
[1746404738433,0.01054151,94863.0,94859.0,0.01054196]
[1746404739038,0.01054151,94863.0,94861.0,0.01454085]
[1746404739214,0.02707175,94863.0,94861.0,0.01454085]
[1746404739850,0.01653024,94863.0,94861.0,0.01454085]
[1746404740086,0.01653024,94863.0,94862.0,0.27187342]
[1746404742211,0.01653024,94863.0,94862.0,0.27787342]
[1746404742658,0.01653024,94863.0,94862.0,0.30961542]
[1746404743607,0.01653024,94863.0,94862.0,0.09878285]
[1746404744791,0.01653024,94863.0,94862.0,0.50708285]
[1746404745178,0.01653024,94863.0,94862.0,0.71791542]
[1746404745701,0.01653024,94863.0,94862.0,0.50708285]
[1746404746236,0.01054129,94865.0,94863.0,0.01454085]
[1746404747582,0.01054129,94865.0,94863.0,0.02054085]
[1746404749300,0.02707129,94865.0,94863.0,0.02054085]
[1746404749529,0.01653,94865.0,94863.0,0.02054085]
[1746404750248,0.01653,94865.0,94863.0,0.23137013]
[1746404750635,0.01653,94865.0,94864.0,0.4083]
[1746404750825,0.01653,94865.0,94864.0,0.51904085]